bitfinex/quotes_BTCUSD_20220111
["timestamp","ask_amount","ask_price","bid_price","bid_amount"]
[1641927458753,0.00704305,42757.0,42756.0,1.09671865]
[1641927459200,0.00704305,42757.0,42756.0,1.11371865]
[1641927460001,0.00704305,42757.0,42756.0,0.79638056]
[1641927460400,0.03234845,42763.0,42761.0,0.44113331]
[1641927461205,0.03234845,42763.0,42761.0,0.44713331]
[1641927462505,0.03234845,42763.0,42761.0,0.49959231]
[1641927462755,0.00015,42770.0,42762.0,0.376208]
[1641927462955,0.00015,42770.0,42769.0,0.0699]
[1641927463454,0.00015,42770.0,42769.0,0.3502747]
[1641927463655,0.00015,42770.0,42769.0,0.4087197]
[1641927463856,0.00015,42770.0,42769.0,0.7849277]
[1641927464257,0.00015,42770.0,42769.0,1.22540479]
[1641927465256,0.00015,42770.0,42769.0,1.23240479]
[1641927466507,0.00015,42770.0,42769.0,1.22540479]
[1641927467104,0.00015,42770.0,42769.0,2.23540479]
[1641927467303,0.00015,42770.0,42769.0,2.25140479]
[1641927468504,0.00015,42770.0,42769.0,2.23540479]
[1641927469007,0.00015,42770.0,42769.0,2.33540479]
[1641927469205,0.00015,42770.0,42769.0,2.45540479]
[1641927469602,0.00015,42770.0,42769.0,2.87540479]
[1641927469803,0.00015,42770.0,42769.0,3.26069348]
[1641927470458,0.00015,42770.0,42769.0,3.24069348]
[1641927470856,0.001,42771.0,42770.0,1.1]
[1641927471057,0.001,42771.0,42770.0,1.86903619]
[1641927471257,0.001,42771.0,42770.0,2.04431319]
[1641927471459,0.001,42773.0,42770.0,2.04431319]
[1641927471662,0.00139478,42773.0,42772.0,0.376208]
[1641927471957,0.00139478,42773.0,42772.0,0.77482628]
[1641927472658,0.001,42777.0,42774.0,0.058425]
[1641927472860,0.001,42777.0,42775.0,0.376208]
[1641927473057,0.001,42777.0,42775.0,0.426208]
[1641927473758,0.001,42777.0,42775.0,0.496108]
[1641927475302,0.001,42777.0,42775.0,0.511108]
[1641927475702,0.001,42777.0,42776.0,0.376208]
[1641927476707,0.001,42777.0,42776.0,0.423408]
[1641927477307,0.001,42777.0,42776.0,0.438408]
[1641927477756,0.001,42779.0,42776.0,0.488408]
[1641927477757,0.00143447,42779.0,42776.0,0.488408]
[1641927477954,0.00143447,42779.0,42778.0,0.45]
[1641927478155,0.00143447,42779.0,42778.0,0.923408]
[1641927478454,0.00143447,42779.0,42778.0,0.993308]
[1641927478654,0.001,42779.0,42778.0,0.543308]
[1641927478855,0.001,42779.0,42778.0,0.88048099]
[1641927479259,0.001,42779.0,42778.0,0.90148099]
[1641927479456,0.001,42779.0,42778.0,1.00148099]
[1641927479656,0.00043448,42781.0,42778.0,1.52148099]
[1641927479855,0.02944522,42787.0,42779.0,1.78135612]
[1641927480055,0.001,42783.0,42780.0,0.8]
[1641927480255,0.001,42783.0,42782.0,1.426208]
[1641927480455,0.001,42783.0,42782.0,1.32036367]
[1641927480755,0.001,42783.0,42782.0,1.49026367]
[1641927480956,0.02944522,42787.0,42783.0,1.2]
[1641927481155,0.02944522,42787.0,42783.0,2.13058042]
[1641927481355,0.02944522,42787.0,42784.0,0.63347287]
[1641927481604,0.02944522,42787.0,42785.0,0.376208]
[1641927482005,0.001,42787.0,42785.0,0.69909861]
[1641927482803,0.001,42787.0,42785.0,1.15448038]
[1641927483403,0.001,42787.0,42785.0,1.27948038]
[1641927484004,0.001,42787.0,42785.0,1.28022848]
[1641927484508,0.001,42787.0,42785.0,0.401208]
[1641927484705,0.001,42787.0,42785.0,0.376208]
[1641927485362,0.001,42787.0,42785.0,0.392208]
[1641927486464,0.001,42787.0,42785.0,0.462108]
[1641927486664,0.001,42787.0,42785.0,0.446108]
[1641927486864,0.001,42787.0,42785.0,0.445748]
[1641927487266,0.001,42787.0,42785.0,0.463748]
[1641927488065,0.001,42787.0,42785.0,0.0879]
[1641927488465,0.377948,42786.0,42785.0,0.0879]
[1641927488665,0.377948,42786.0,42785.0,0.0699]
[1641927489303,0.377948,42786.0,42785.0,0.0939]
[1641927489508,0.70242215,42786.0,42785.0,0.0939]
[1641927490503,1.06703573,42786.0,42785.0,0.0699]
[1641927491107,2.36885573,42786.0,42785.0,0.0699]
[1641927491305,2.41605573,42786.0,42785.0,0.0699]
[1641927491704,0.17535282,42783.0,42778.0,0.42]
[1641927491906,1.57714973,42779.0,42778.0,0.42]
[1641927492105,1.72434973,42779.0,42778.0,0.42]
[1641927492308,0.52434973,42779.0,42767.0,0.00015]
[1641927492506,0.00126339,42773.0,42767.0,0.00015]
[1641927492768,0.1169067,42770.0,42767.0,0.0999]
[1641927492966,0.04846339,42773.0,42767.0,0.46384407]
[1641927493166,0.04846339,42773.0,42768.0,0.00015]
[1641927493368,0.04846339,42773.0,42770.0,0.058443]
[1641927493566,0.00126339,42773.0,42770.0,0.058443]
[1641927493766,0.00126339,42773.0,42770.0,0.00015]
[1641927494368,0.00126339,42773.0,42770.0,0.058595]
[1641927494567,0.00126339,42773.0,42770.0,0.058445]
[1641927495369,0.00826339,42773.0,42770.0,0.069445]
[1641927495766,0.00826339,42773.0,42770.0,0.011]
[1641927495967,0.06671139,42773.0,42770.0,0.011]
[1641927496710,0.375948,42772.0,42768.0,0.00015]
[1641927496908,0.00126339,42773.0,42768.0,0.00015]
[1641927497109,0.058455,42772.0,42765.0,0.00015]
[1641927497310,0.009,42772.0,42768.0,0.009]
[1641927497712,0.009,42772.0,42769.0,0.00015]
[1641927497913,0.05845433,42770.0,42769.0,0.00015]
[1641927499117,2.00402757,42770.0,42769.0,0.00015]
[1641927499316,2.01502757,42770.0,42769.0,0.00415]
[1641927500559,2.00402757,42770.0,42769.0,0.00015]
[1641927500960,0.48136228,42767.0,42765.0,0.00015]
[1641927501160,0.074151,42766.0,42765.0,0.00015]
[1641927501759,0.37905245,42766.0,42765.0,0.00015]
[1641927503163,0.35210145,42766.0,42765.0,0.00015]
[1641927503363,0.06543924,42766.0,42765.0,0.00015]
[1641927504015,0.0642,42766.0,42765.0,0.00015]
[1641927504607,0.058452,42772.0,42765.0,0.00015]
[1641927504807,0.40168989,42770.0,42765.0,0.00015]
[1641927505107,0.46014289,42770.0,42765.0,0.00015]
[1641927505309,0.46014289,42770.0,42765.0,0.00115]
[1641927505507,0.0584544,42769.0,42765.0,0.00115]
[1641927505706,0.0584544,42769.0,42766.0,0.00015]
[1641927506307,0.43268989,42770.0,42766.0,0.00015]
[1641927506907,0.05845401,42769.0,42766.0,0.00015]
[1641927507508,0.12445401,42769.0,42766.0,0.00015]
[1641927507778,0.18290801,42769.0,42765.0,0.00015]
[1641927508578,0.11690801,42769.0,42765.0,0.00015]
[1641927509477,0.17690801,42769.0,42765.0,0.00015]
[1641927510078,0.11691731,42768.0,42765.0,0.00015]
[1641927510277,0.30213841,42767.0,42765.0,0.00015]
[1641927510478,0.05845619,42767.0,42765.0,0.00015]
[1641927510782,0.30350524,42766.0,42765.0,0.00015]
[1641927511378,0.32350524,42766.0,42765.0,0.00015]
[1641927511611,0.471978,42766.0,42765.0,0.00015]
[1641927511809,0.847926,42766.0,42765.0,0.00015]
[1641927512011,1.58919337,42765.0,42764.0,0.42]
[1641927512208,1.66334437,42765.0,42764.0,0.42]
[1641927512409,1.2,42764.0,42758.0,0.00071135]
[1641927512610,0.00126571,42761.0,42758.0,0.00071135]
[1641927512808,1.22821671,42761.0,42758.0,0.00071135]
[1641927513009,1.57757092,42761.0,42758.0,0.00071135]
[1641927513211,2.04139184,42761.0,42758.0,0.00071135]
[1641927513413,2.05439184,42761.0,42751.0,0.26083537]
[1641927513615,2.05439184,42761.0,42758.0,0.00071132]
[1641927514410,2.05439184,42761.0,42760.0,0.00015]
[1641927514812,2.04139184,42761.0,42759.0,0.00015]
[1641927515012,1.91213638,42760.0,42758.0,0.00071215]
[1641927515260,1.59261341,42759.0,42758.0,0.00071215]
[1641927515461,0.3623104,42759.0,42758.0,0.00071215]
[1641927515658,0.866948,42758.0,42752.0,0.00284898]
[1641927515857,0.866948,42758.0,42749.0,0.00015]
[1641927515858,0.375948,42757.0,42749.0,0.00015]
[1641927516060,0.866948,42758.0,42749.0,0.00015]
[1641927516258,0.866948,42758.0,42757.0,0.00015]
[1641927516457,1.56458812,42758.0,42757.0,0.00015]
[1641927516658,0.81458812,42758.0,42757.0,0.00015]
[1641927517259,0.69764012,42758.0,42757.0,0.00015]
[1641927517460,0.71564012,42758.0,42757.0,0.00015]
[1641927518661,0.69764012,42758.0,42757.0,0.00015]
[1641927518860,0.69764012,42758.0,42756.0,0.00015]
[1641927519110,1.03322704,42757.0,42756.0,0.00015]
[1641927519312,0.33322704,42757.0,42756.0,0.00015]
[1641927519910,0.33322704,42757.0,42754.0,0.00084367]
[1641927520112,0.3917001,42757.0,42755.0,0.00015]
[1641927520310,0.32331016,42756.0,42755.0,0.00015]
[1641927520509,0.69925816,42756.0,42755.0,0.00015]
[1641927521111,0.69925816,42756.0,42753.0,0.00084368]
[1641927521316,0.058473,42755.0,42754.0,0.00015]
[1641927521811,0.758473,42755.0,42754.0,0.00015]
[1641927522013,1.134421,42755.0,42754.0,0.00015]
[1641927522213,1.134421,42755.0,42752.0,0.00084369]
[1641927522517,0.55,42753.0,42752.0,0.00024069]
[1641927522756,0.43699312,42753.0,42752.0,0.00024069]
[1641927523157,0.43699312,42753.0,42748.0,0.00015]
[1641927523357,0.058476,42751.0,42748.0,0.00015]
[1641927523761,0.11695858,42751.0,42748.0,0.00015]
[1641927523962,0.00121608,42749.0,42748.0,0.00015]
[1641927525459,0.50821608,42749.0,42748.0,0.02115]
[1641927525660,1.28416408,42749.0,42748.0,0.02115]
[1641927525862,1.1890824,42749.0,42748.0,0.02115]
[1641927526060,1.2362824,42749.0,42748.0,0.02115]
[1641927526711,1.64929686,42749.0,42748.0,0.00015]
[1641927527410,2.16129686,42749.0,42748.0,0.00015]
[1641927528412,2.16068659,42749.0,42748.0,0.00015]
[1641927528613,2.14868659,42749.0,42748.0,0.00015]
[1641927529413,2.16068659,42749.0,42748.0,0.00015]
[1641927529613,2.21918359,42749.0,42748.0,0.00015]
[1641927530658,2.20718359,42749.0,42748.0,0.00015]
[1641927531059,2.20785861,42749.0,42748.0,0.00015]
[1641927531459,2.21985861,42749.0,42748.0,0.00015]
[1641927532759,2.20785861,42749.0,42748.0,0.00015]
[1641927533460,2.21885861,42749.0,42748.0,0.00015]
[1641927533660,0.93542883,42749.0,42748.0,0.00015]
[1641927533860,0.934148,42749.0,42748.0,0.00015]
[1641927534612,0.875948,42749.0,42748.0,0.00015]
[1641927535408,0.889948,42749.0,42748.0,0.00015]
[1641927536610,0.389948,42749.0,42748.0,0.00015]
[1641927536810,0.375948,42749.0,42748.0,0.00015]
[1641927537611,0.389948,42749.0,42748.0,0.00015]
[1641927538659,0.375948,42749.0,42748.0,0.00015]
[1641927539458,0.389948,42749.0,42748.0,0.00015]
[1641927540859,0.375948,42749.0,42748.0,0.00015]
[1641927541516,0.389948,42749.0,42748.0,0.00015]
[1641927542512,0.989948,42749.0,42748.0,0.00015]
[1641927542713,1.86586446,42749.0,42748.0,0.00015]
[1641927542912,1.52438544,42749.0,42748.0,0.00015]
[1641927543514,1.53638544,42749.0,42748.0,0.00015]
[1641927544312,1.53638544,42749.0,42742.0,0.0011]
[1641927544514,0.00124747,42743.0,42742.0,0.0011]
[1641927544713,0.37719547,42743.0,42742.0,0.0011]
[1641927545460,0.79222095,42743.0,42742.0,0.0011]
[1641927545859,1.29222095,42743.0,42742.0,0.0011]
[1641927547562,1.29122095,42743.0,42742.0,0.0011]
[1641927548764,1.27622095,42743.0,42742.0,0.0011]
[1641927549415,1.59595305,42743.0,42742.0,0.0011]
[1641927549615,1.60895305,42743.0,42742.0,0.0011]
[1641927549813,1.20992757,42743.0,42742.0,0.0011]
[1641927550019,0.89019547,42743.0,42742.0,0.0011]
[1641927550217,0.513,42743.0,42742.0,0.0011]
[1641927550816,0.058503,42746.0,42742.0,0.0011]
[1641927551016,0.375948,42745.0,42742.0,0.0011]
[1641927551522,0.442948,42745.0,42742.0,0.0011]
[1641927551716,0.442358,42745.0,42742.0,0.0011]
[1641927552765,0.375358,42745.0,42742.0,0.0011]
[1641927553464,0.442358,42745.0,42742.0,0.0011]
[1641927554666,0.375358,42745.0,42742.0,0.0011]
[1641927555567,0.414358,42745.0,42742.0,0.0011]
[1641927556813,0.375358,42745.0,42742.0,0.0011]
[1641927557611,0.409358,42745.0,42742.0,0.0011]
[1641927557816,0.05849352,42744.0,42742.0,0.0011]
[1641927558012,0.48399663,42743.0,42742.0,0.0011]
[1641927559412,0.76548663,42743.0,42742.0,0.0011]
[1641927559711,0.78448663,42743.0,42742.0,0.0011]
[1641927559911,0.77825358,42743.0,42742.0,0.0011]
[1641927560763,0.45925358,42743.0,42742.0,0.0011]
[1641927560963,0.00925358,42743.0,42742.0,0.0011]
[1641927561364,0.35925358,42743.0,42742.0,0.0011]
[1641927561562,0.37925358,42743.0,42742.0,0.0011]
[1641927561962,0.37925358,42743.0,42736.0,0.33257858]
[1641927561963,0.02925358,42743.0,42736.0,0.32701002]
[1641927562163,0.058494,42740.0,42736.0,0.32701002]
[1641927562362,0.02704563,42743.0,42736.0,0.32701002]
[1641927562764,0.00704563,42743.0,42736.0,0.32701002]
[1641927563164,0.058491,42742.0,42736.0,0.32701002]
[1641927563367,0.53709711,42741.0,42735.0,0.0999]
[1641927563770,0.13003363,42743.0,42735.0,0.0999]
[1641927564210,0.058491,42742.0,42741.0,0.31101865]
[1641927564411,0.01304563,42743.0,42741.0,0.31101865]
[1641927564710,0.00704563,42743.0,42741.0,0.31101865]
[1641927565111,0.00704563,42743.0,42735.0,0.0999]
[1641927565311,0.058493,42742.0,42738.0,0.0005007]
[1641927566310,0.058493,42742.0,42735.0,0.3768379]
[1641927566511,0.058493,42742.0,42738.0,0.00084386]
[1641927567512,0.069493,42742.0,42735.0,0.7968379]
[1641927567762,0.069493,42742.0,42738.0,0.00084386]
[1641927567763,0.12798906,42742.0,42738.0,0.00084386]
[1641927568561,0.12798906,42742.0,42735.0,0.7968379]
[1641927568762,0.11698906,42742.0,42738.0,0.00084386]
[1641927568962,0.058493,42742.0,42738.0,0.00084386]
[1641927569562,0.072493,42742.0,42738.0,0.00084386]
[1641927569762,0.072493,42742.0,42735.0,0.7968379]
[1641927570163,0.072493,42742.0,42738.0,0.00084386]
[1641927570765,0.014,42742.0,42738.0,0.00084386]
[1641927570965,0.00704563,42743.0,42739.0,0.376255]
[1641927571267,0.00704563,42743.0,42742.0,0.33867232]
[1641927571519,0.04704563,42743.0,42742.0,0.33867232]
[1641927571920,0.04704563,42743.0,42738.0,0.05084386]
[1641927572122,0.04704563,42743.0,42738.0,0.00084386]
[1641927572319,0.04704563,42743.0,42735.0,0.5699]
[1641927572519,0.04704563,42743.0,42738.0,0.00084387]
[1641927572919,0.00704563,42743.0,42739.0,0.25899885]
[1641927573123,0.058492,42742.0,42739.0,0.25899885]
[1641927574320,0.058492,42742.0,42738.0,0.00084387]
[1641927574721,0.058492,42742.0,42735.0,0.91388]
[1641927574923,0.058492,42742.0,42738.0,0.00084386]
[1641927575367,0.058492,42742.0,42740.0,0.25430253]
[1641927575567,0.089492,42742.0,42740.0,0.25430253]
[1641927576568,0.089492,42742.0,42738.0,0.00084387]
[1641927576770,0.058492,42742.0,42735.0,0.90972387]
[1641927577468,0.058492,42742.0,42738.0,0.31792404]
[1641927577668,0.066492,42742.0,42738.0,0.31792404]
[1641927578070,0.066492,42742.0,42736.0,0.058488]
[1641927578471,0.06683919,42742.0,42736.0,0.058488]
[1641927578871,0.05883919,42742.0,42736.0,0.058488]
[1641927579117,0.05883919,42742.0,42738.0,0.30131335]
[1641927579520,0.00704563,42743.0,42738.0,0.30131335]
[1641927579717,0.01034719,42742.0,42738.0,0.30131335]
[1641927580517,0.01034719,42742.0,42738.0,0.39701335]
[1641927580719,0.01,42742.0,42738.0,0.39701335]
[1641927580921,0.00057145,42742.0,42738.0,0.39701335]
[1641927581718,0.01057145,42742.0,42738.0,0.39701335]
[1641927581919,0.01,42742.0,42738.0,0.45549735]
[1641927582119,0.01057145,42742.0,42739.0,0.376255]
[1641927582319,0.01057145,42742.0,42738.0,0.45549735]
[1641927582521,0.01057145,42742.0,42738.0,0.39701335]
[1641927582965,0.00704563,42743.0,42738.0,0.39701335]
[1641927583165,0.00057145,42742.0,42739.0,1.01]
[1641927584167,0.07653363,42743.0,42739.0,1.01]
[1641927584567,0.07710508,42743.0,42739.0,1.01]
[1641927585469,0.06553363,42743.0,42739.0,1.01]
[1641927585667,0.07710508,42743.0,42739.0,1.01]
[1641927586713,0.07653363,42743.0,42739.0,1.01]
[1641927586914,0.06610508,42743.0,42739.0,1.01]
[1641927587617,0.07710508,42743.0,42739.0,1.01]
[1641927587815,0.07653363,42743.0,42739.0,1.01]
[1641927588015,0.07710508,42743.0,42739.0,1.01]
[1641927588919,0.00761708,42743.0,42739.0,1.118485]
[1641927589117,0.00704563,42743.0,42739.0,1.118485]
[1641927589317,0.00761708,42743.0,42739.0,1.118485]
[1641927589518,0.00761708,42743.0,42739.0,1.068485]
[1641927589719,0.01861708,42743.0,42739.0,1.068485]
[1641927590271,0.011,42743.0,42740.0,0.376255]
[1641927590473,0.011,42743.0,42742.0,0.1]
[1641927590474,0.00067145,42743.0,42742.0,0.1]
[1641927590772,0.00015,42750.0,42743.0,0.55262177]
[1641927590972,0.00015,42750.0,42747.0,0.0955]
[1641927591175,0.00015,42750.0,42749.0,0.25658127]
[1641927591374,0.00015,42750.0,42749.0,0.77543627]
[1641927591571,0.03215,42750.0,42749.0,0.518855]
[1641927591771,0.03215,42750.0,42749.0,0.568855]
[1641927592174,0.03215,42750.0,42749.0,0.518855]
[1641927592372,0.03215,42750.0,42749.0,0.568855]
[1641927592573,0.03215,42750.0,42749.0,0.618855]
[1641927592772,0.03215,42750.0,42749.0,0.586095]
[1641927592972,0.00015,42750.0,42749.0,0.586095]
[1641927593174,0.00015,42750.0,42749.0,0.88695261]
[1641927593572,0.00115,42750.0,42749.0,0.90195261]
[1641927594419,0.00044228,42750.0,42749.0,0.90195261]
[1641927594818,0.00056683,42752.0,42749.0,0.88695261]
[1641927595019,0.49307434,42756.0,42750.0,0.434723]
[1641927595219,0.00056683,42752.0,42751.0,0.0472]
[1641927595619,0.00056683,42752.0,42751.0,0.423455]
[1641927596221,0.50507434,42756.0,42751.0,0.423455]
[1641927596424,0.00056684,42754.0,42752.0,0.31649075]
[1641927596725,0.311,42762.0,42752.0,0.31649075]
[1641927596726,1.3659,42764.0,42754.0,0.6]
[1641927596923,0.9459,42764.0,42755.0,0.4262381]
[1641927597322,0.9459,42764.0,42755.0,0.0972]
[1641927597524,0.79948218,42768.0,42763.0,0.33459536]
[1641927597767,0.032,42764.0,42763.0,0.33459536]
[1641927598266,0.032,42764.0,42763.0,0.71085036]
[1641927599267,0.017,42764.0,42763.0,0.71085036]
[1641927599466,0.00034576,42766.0,42763.0,0.71085036]
[1641927599667,0.00034576,42766.0,42763.0,0.33859536]
[1641927599870,0.478456,42768.0,42763.0,0.33859536]
[1641927600069,0.00034576,42767.0,42763.0,0.33859536]
[1641927600369,0.00034576,42767.0,42766.0,0.0954]
[1641927600769,0.00034576,42767.0,42766.0,0.1426]
[1641927600969,0.00015,42770.0,42766.0,0.1426]
[1641927601368,0.00056232,42769.0,42766.0,0.1426]
[1641927601624,0.00056232,42769.0,42766.0,0.1506]
[1641927602021,0.05764469,42774.0,42770.0,0.37062289]
[1641927602621,0.02,42777.0,42770.0,0.37062289]
[1641927602821,0.376255,42776.0,42770.0,0.37062289]
[1641927603421,0.376255,42776.0,42771.0,0.31142574]
[1641927603625,0.00034435,42775.0,42771.0,0.31142574]
[1641927603823,0.00034435,42775.0,42771.0,0.41986674]
[1641927604626,0.02,42777.0,42771.0,0.41986674]
[1641927604824,0.02,42777.0,42771.0,0.41142574]
[1641927605026,0.02,42777.0,42772.0,0.0472]
[1641927605268,0.00034435,42775.0,42772.0,0.105638]
[1641927605669,0.00034435,42775.0,42772.0,0.111638]
[1641927605871,0.00034435,42775.0,42773.0,0.69611884]
[1641927606071,0.0005578,42776.0,42774.0,0.32896143]
[1641927606271,0.0005578,42776.0,42775.0,0.434685]
[1641927606471,0.0005578,42776.0,42775.0,0.84657526]
[1641927606671,0.0005578,42776.0,42775.0,0.89377526]
[1641927606872,0.0005578,42776.0,42775.0,0.99377526]
[1641927607071,0.02,42777.0,42775.0,0.99377526]
[1641927607272,0.02,42777.0,42776.0,1.13613007]
[1641927607471,0.02,42777.0,42776.0,0.75958507]
[1641927607673,0.02,42777.0,42776.0,0.423455]
[1641927608472,0.02,42777.0,42776.0,0.0472]
[1641927608874,1.19530659,42777.0,42776.0,0.0472]
[1641927609142,1.19530659,42777.0,42760.0,0.22327271]
[1641927609143,0.00128446,42774.0,42766.0,0.0954]
[1641927609333,0.05846,42770.0,42766.0,0.0954]
[1641927609734,0.05846,42770.0,42767.0,0.71483036]
[1641927610135,0.05846,42770.0,42768.0,0.376255]
[1641927611137,0.05846,42770.0,42767.0,0.41504913]
[1641927611336,0.05846,42770.0,42768.0,0.0954]
[1641927611537,0.00055776,42771.0,42769.0,0.32313487]
[1641927611737,0.001,42770.0,42769.0,0.32313487]
[1641927612242,0.001,42770.0,42768.0,0.0954]
[1641927612873,0.09864814,42772.0,42768.0,0.0954]
[1641927613172,0.09809037,42772.0,42768.0,0.0954]
[1641927613373,0.00055776,42771.0,42768.0,0.0954]
[1641927613777,0.00055776,42771.0,42770.0,0.0954]
[1641927614373,0.09664337,42772.0,42770.0,0.0954]
[1641927614573,0.057,42772.0,42770.0,0.0954]
[1641927614778,0.07928674,42771.0,42770.0,0.0954]
[1641927615375,0.3755425,42771.0,42770.0,0.0954]
[1641927615774,0.4375425,42771.0,42770.0,0.0964]
[1641927616177,1.2,42770.0,42765.0,1.01]
[1641927616378,0.11814648,42768.0,42765.0,1.01]
[1641927616631,0.423455,42767.0,42765.0,1.01]
[1641927616834,1.576255,42766.0,42765.0,1.01]
[1641927617031,1.576255,42766.0,42765.0,0.15355658]
[1641927617032,2.01256894,42766.0,42765.0,0.15355658]
[1641927617231,2.01380953,42766.0,42757.0,0.00015]
[1641927617436,0.05976897,42759.0,42757.0,0.00015]
[1641927617732,1.99994129,42758.0,42757.0,0.00115]
[1641927617932,2.00120166,42758.0,42757.0,0.00115]
[1641927618334,2.05967766,42758.0,42757.0,0.00115]
[1641927618734,0.85967766,42758.0,42757.0,0.00115]
[1641927618934,0.48319137,42758.0,42757.0,0.00115]
[1641927619135,0.48319137,42758.0,42757.0,0.00015]
[1641927619535,0.058474,42757.0,42753.0,0.0008437]
[1641927619736,0.423455,42756.0,42754.0,0.00015]
[1641927619939,0.46309837,42756.0,42754.0,0.00015]
[1641927620137,0.03964337,42755.0,42754.0,0.00015]
[1641927620371,0.46309837,42755.0,42754.0,0.00015]
[1641927620572,0.08684337,42755.0,42754.0,0.00015]
[1641927620772,0.08684337,42755.0,42753.0,0.00084369]
[1641927621571,0.08684337,42755.0,42750.0,0.25136357]
[1641927621572,0.058475,42754.0,42750.0,0.25136357]
[1641927621772,0.058475,42754.0,42752.0,0.0008437]
[1641927622173,0.058475,42754.0,42753.0,0.00015]
[1641927622575,0.20359337,42755.0,42753.0,0.00015]
[1641927622974,0.376255,42754.0,42753.0,0.00015]
[1641927623173,0.376255,42754.0,42751.0,0.00099371]
[1641927623373,0.15659337,42755.0,42752.0,0.00015]
[1641927623574,0.2150702,42755.0,42752.0,0.00015]
[1641927623872,0.04,42754.0,42752.0,0.00015]
[1641927624422,0.098476,42754.0,42751.0,0.00084371]
[1641927625022,0.098476,42754.0,42750.0,0.29120952]
[1641927625023,0.058476,42754.0,42750.0,0.29120952]
[1641927625226,0.03964337,42752.0,42750.0,0.00084372]
[1641927625423,0.07928674,42752.0,42751.0,0.00015]
[1641927625625,0.37928674,42752.0,42751.0,0.00015]
[1641927625825,0.78489563,42752.0,42751.0,0.00015]
[1641927626024,0.84274174,42752.0,42751.0,0.00015]
[1641927626326,0.84401929,42752.0,42751.0,0.00015]
[1641927626523,1.34401929,42752.0,42751.0,0.00015]
[1641927626723,1.34401929,42752.0,42749.0,0.00084373]
[1641927626724,0.058492,42751.0,42749.0,0.00084373]
[1641927626924,0.17547109,42751.0,42750.0,0.00015]
[1641927627125,1.85866371,42751.0,42750.0,0.0003]
[1641927627775,1.87366371,42751.0,42750.0,0.0003]
[1641927628071,1.63748728,42749.0,42748.0,0.00084374]
[1641927628273,2.06094228,42749.0,42748.0,0.00084374]
[1641927628473,0.48320059,42749.0,42748.0,0.00084374]
[1641927628675,1.15211267,42749.0,42748.0,0.0003]
[1641927628874,0.80211267,42749.0,42748.0,0.0003]
[1641927629074,0.86060267,42749.0,42747.0,0.0003]
[1641927629274,0.376255,42748.0,42747.0,0.0003]
[1641927629777,1.11367033,42748.0,42747.0,0.0003]
[1641927630178,1.11493614,42748.0,42747.0,0.0003]
[1641927630378,0.11699794,42747.0,42745.0,0.00084378]
[1641927630576,1.58768868,42746.0,42745.0,0.00084378]
[1641927630775,2.00329902,42746.0,42745.0,0.00084378]
[1641927630978,2.00329902,42746.0,42739.0,0.00337561]
[1641927631177,0.058499,42741.0,42732.0,0.80295322]
[1641927631379,0.058502,42740.0,42737.0,0.00337571]
[1641927631836,0.058502,42740.0,42739.0,0.0003]
[1641927632639,0.058502,42740.0,42736.0,0.24638577]
[1641927633642,0.058502,42740.0,42737.0,0.376255]
[1641927633842,0.060502,42740.0,42737.0,0.376255]
[1641927634845,0.002,42740.0,42737.0,0.376255]
[1641927635044,0.055492,42743.0,42736.0,0.29638577]
[1641927635875,0.061492,42743.0,42736.0,0.29638577]
[1641927636075,0.03964337,42738.0,42736.0,0.29638577]
[1641927636276,0.03964337,42738.0,42737.0,0.376255]
[1641927636877,0.03964337,42738.0,42736.0,0.05]
[1641927637077,0.03964337,42738.0,42735.0,0.52]
[1641927637277,0.09814337,42738.0,42735.0,0.5208439]
[1641927638382,0.09814337,42738.0,42736.0,0.376255]
[1641927638579,0.09814337,42738.0,42735.0,0.47]
[1641927638778,0.09814337,42738.0,42736.0,0.376255]
[1641927639034,0.03964337,42738.0,42736.0,0.376255]
[1641927639826,0.08064337,42738.0,42735.0,0.4208439]
[1641927640027,0.08064337,42738.0,42735.0,0.4708439]
[1641927640328,0.08064337,42738.0,42736.0,0.376255]
[1641927640627,0.08064337,42738.0,42736.0,0.426255]
[1641927641030,0.03964337,42740.0,42736.0,0.426255]
[1641927641227,0.03964337,42738.0,42736.0,0.05]
[1641927641428,0.07928674,42738.0,42737.0,0.1998]
[1641927641629,0.07928674,42738.0,42737.0,0.19942641]
[1641927643377,0.07928674,42738.0,42737.0,0.57568141]
[1641927643580,0.00059653,42741.0,42738.0,0.45]
[1641927643777,0.00059653,42741.0,42739.0,0.376255]
[1641927643976,0.00059653,42741.0,42740.0,1.275655]
[1641927644179,0.00059653,42741.0,42740.0,1.47096788]
[1641927644377,0.00015,42750.0,42744.0,0.05846945]
[1641927644577,0.00015,42750.0,42745.0,0.70891666]
[1641927644777,0.00015,42750.0,42746.0,0.05]
[1641927644977,0.00015,42750.0,42746.0,0.48174553]
[1641927645179,0.00015,42750.0,42749.0,0.6993]
[1641927645378,0.00015,42750.0,42749.0,0.575555]
[1641927645778,0.03715,42750.0,42749.0,0.575555]
[1641927645979,0.03715,42750.0,42749.0,0.525555]
[1641927647823,0.01315,42750.0,42749.0,0.525555]
[1641927648023,0.01315,42750.0,42749.0,0.426255]
[1641927648423,0.01315,42750.0,42749.0,1.076255]
[1641927648624,0.01315,42750.0,42749.0,0.575555]
[1641927649023,0.00015,42750.0,42749.0,0.575555]
[1641927649224,0.00015,42750.0,42749.0,1.03219177]
[1641927649826,0.00015,42750.0,42749.0,1.10419177]
[1641927650677,0.00015,42750.0,42749.0,1.20419177]
[1641927650876,0.00015,42750.0,42749.0,1.25139177]
[1641927651676,0.00015,42750.0,42749.0,1.17939177]
[1641927651875,0.00015,42750.0,42749.0,1.28539177]
[1641927653079,0.00015,42750.0,42749.0,1.17939177]
[1641927653278,0.00015,42750.0,42749.0,2.62008193]
[1641927653680,0.00015,42750.0,42749.0,2.92878193]
[1641927654033,0.3002304,42770.0,42750.0,0.95]
[1641927654226,0.00059663,42752.0,42751.0,1.30289664]
[1641927654426,0.00059663,42752.0,42751.0,2.24475156]
[1641927654628,0.00059663,42752.0,42751.0,2.39490156]
[1641927655027,0.3247804,42767.0,42751.0,2.39490156]
[1641927655229,0.3247804,42767.0,42761.0,0.39713436]